[Event "Titled Tuesday Blitz January 10 Late 2023"]
[White "Korchmar, Vasiliy"]
[Black "De Arruda, Leandro Formes"]
[WhiteFideId "24131750"]
[BlackFideId "22722009"]
[WhiteElo "2438"]
[BlackElo "1980"]
[Result "1/2-1/2"]
[Round "01"]
[TimeControl "180+2"]
[Date "2023.01.10"]
[WhiteClock "0:00:07"]
[BlackClock "0:00:07"]

1. e4 {[%clk 0:00:00]}  e6 {[%clk 0:00:00]} 2. d4 {[%clk 0:03:00]}  d5 {[%clk 0:03:00]} 3. e5 {[%clk 0:03:00]}  c5 {[%clk 0:03:00]} 4. c3 {[%clk 0:03:01]}  Nc6 {[%clk 0:03:01]} 5. Nf3 {[%clk 0:03:02]}  Qb6 {[%clk 0:03:01]} 6. Be2 {[%clk 0:03:02]}  Bd7 {[%clk 0:03:02]} 7. O-O {[%clk 0:03:02]}  cxd4 {[%clk 0:03:02]} 8. cxd4 {[%clk 0:03:00]}  Nge7 {[%clk 0:03:02]} 9. Na3 {[%clk 0:03:00]}  Nf5 {[%clk 0:03:03]} 10. Nc2 {[%clk 0:03:01]}  h5 {[%clk 0:03:02]} 11. Bd3 {[%clk 0:03:01]}  g6 {[%clk 0:03:00]} 12. Rb1 {[%clk 0:03:01]}  Bh6 {[%clk 0:03:00]} 13. Bxh6 {[%clk 0:02:56]}  Rxh6 {[%clk 0:02:45]} 14. Bxf5 {[%clk 0:02:50]}  gxf5 {[%clk 0:02:46]} 15. h4 {[%clk 0:02:39]}  Ke7 {[%clk 0:02:47]} 16. b4 {[%clk 0:02:37]}  Rg8 {[%clk 0:02:35]} 17. Ng5 {[%clk 0:02:30]}  a6 {[%clk 0:02:33]} 18. a4 {[%clk 0:02:29]}  Na7 {[%clk 0:02:19]} 19. Ne1 {[%clk 0:02:27]}  Rc8 {[%clk 0:02:11]} 20. Qd2 {[%clk 0:02:18]}  Rg6 {[%clk 0:01:57]} 21. a5 {[%clk 0:01:43]}  Qc7 {[%clk 0:01:49]} 22. Nd3 {[%clk 0:01:43]}  Qc2 {[%clk 0:01:37]} 23. Qxc2 {[%clk 0:01:39]}  Rxc2 {[%clk 0:01:30]} 24. Nf4 {[%clk 0:01:39]}  Rh6 {[%clk 0:01:31]} 25. Rfc1 {[%clk 0:01:15]}  Rxc1+ {[%clk 0:01:30]} 26. Rxc1 {[%clk 0:01:04]}  Bc6 {[%clk 0:01:22]} 27. Kf1 {[%clk 0:01:04]}  Bb5+ {[%clk 0:01:14]} 28. Ke1 {[%clk 0:00:43]}  Bc4 {[%clk 0:01:10]} 29. Kd2 {[%clk 0:00:38]}  Nb5 {[%clk 0:01:07]} 30. Ke3 {[%clk 0:00:34]}  Rh8 {[%clk 0:00:59]} 31. Nf3 {[%clk 0:00:31]}  Rg8 {[%clk 0:00:52]} 32. Nd2 {[%clk 0:00:31]}  Na3 {[%clk 0:00:36]} 33. Rc3 {[%clk 0:00:29]}  Nb5 {[%clk 0:00:20]} 34. Rc1 {[%clk 0:00:29]}  Na3 {[%clk 0:00:18]} 35. g3 {[%clk 0:00:30]}  Rh8 {[%clk 0:00:18]} 36. Rc3 {[%clk 0:00:30]}  Nb5 {[%clk 0:00:17]} 37. Rc1 {[%clk 0:00:29]}  Na3 {[%clk 0:00:16]} 38. Nd3 {[%clk 0:00:30]}  Rb8 {[%clk 0:00:16]} 39. Nc5 {[%clk 0:00:29]}  b6 {[%clk 0:00:11]} 40. Nd3 {[%clk 0:00:27]}  bxa5 {[%clk 0:00:10]} 41. bxa5 {[%clk 0:00:09]}  Nb5 {[%clk 0:00:09]} 42. Nxc4 {[%clk 0:00:10]}  dxc4 {[%clk 0:00:05]} 43. Rxc4 {[%clk 0:00:08]}  Rd8 {[%clk 0:00:06]} 44. Nf4 {[%clk 0:00:09]}  f6 {[%clk 0:00:06]} 45. exf6+ {[%clk 0:00:09]}  Kxf6 {[%clk 0:00:05]} 46. Nxh5+ {[%clk 0:00:09]}  Kg6 {[%clk 0:00:06]} 47. Nf4+ {[%clk 0:00:10]}  Kf6 {[%clk 0:00:07]} 48. Rc6 {[%clk 0:00:10]}  Nxd4 {[%clk 0:00:07]} 49. Rxa6 {[%clk 0:00:07]}  Ke5 {[%clk 0:00:07]} 50. Nd3+ {[%clk 0:00:08]}  Kf6 {[%clk 0:00:07]} 51. Nf4 {[%clk 0:00:08]}  Nc2+ {[%clk 0:00:07]} 52. Ke2 {[%clk 0:00:08]}  Nd4+ {[%clk 0:00:07]} 53. Ke3 {[%clk 0:00:07]} 1/2-1/2


[Site "https://www.chess.com"]

[Event "Titled Tuesday Blitz January 10 Late 2023"]
[White "Bjelobrk, Igor"]
[Black "Thiel, Thomas"]
[WhiteFideId "4300726"]
[BlackFideId "4615964"]
[WhiteElo "2403"]
[BlackElo "2234"]
[Result "1-0"]
[Round "01"]
[TimeControl "180+2"]
[Date "2023.01.10"]
[WhiteClock "0:00:51"]
[BlackClock "0:00:35"]

1. Nf3 {[%clk 0:00:00]}  Nf6 {[%clk 0:00:00]} 2. g3 {[%clk 0:02:55]}  g6 {[%clk 0:02:57]} 3. Bg2 {[%clk 0:02:53]}  Bg7 {[%clk 0:02:57]} 4. O-O {[%clk 0:02:53]}  d5 {[%clk 0:02:57]} 5. d4 {[%clk 0:02:52]}  O-O {[%clk 0:02:58]} 6. c4 {[%clk 0:02:49]}  dxc4 {[%clk 0:02:56]} 7. Na3 {[%clk 0:02:49]}  Nc6 {[%clk 0:02:56]} 8. Nxc4 {[%clk 0:02:47]}  Be6 {[%clk 0:02:56]} 9. b3 {[%clk 0:02:46]}  a5 {[%clk 0:02:53]} 10. a4 {[%clk 0:02:42]}  Bd5 {[%clk 0:02:52]} 11. Bb2 {[%clk 0:02:39]}  Re8 {[%clk 0:02:51]} 12. Rc1 {[%clk 0:02:36]}  Nb4 {[%clk 0:02:42]} 13. e3 {[%clk 0:02:25]}  Na2 {[%clk 0:02:37]} 14. Ra1 {[%clk 0:02:22]}  Nb4 {[%clk 0:02:30]} 15. Qe2 {[%clk 0:02:21]}  Be4 {[%clk 0:02:29]} 16. Ne1 {[%clk 0:02:21]}  Bxg2 {[%clk 0:02:24]} 17. Nxg2 {[%clk 0:02:07]}  c6 {[%clk 0:02:21]} 18. Rfd1 {[%clk 0:02:04]}  Nd7 {[%clk 0:02:16]} 19. Nf4 {[%clk 0:02:03]}  Nb6 {[%clk 0:02:15]} 20. Nd3 {[%clk 0:01:53]}  N6d5 {[%clk 0:02:14]} 21. Nc5 {[%clk 0:01:45]}  b6 {[%clk 0:02:08]} 22. Ne4 {[%clk 0:01:40]}  Qc7 {[%clk 0:02:00]} 23. Ned2 {[%clk 0:01:31]}  e6 {[%clk 0:01:35]} 24. Nf3 {[%clk 0:01:28]}  Ne7 {[%clk 0:01:31]} 25. Rdc1 {[%clk 0:01:27]}  Qb7 {[%clk 0:01:25]} 26. Nd6 {[%clk 0:01:26]}  Qd7 {[%clk 0:01:22]} 27. Nxe8 {[%clk 0:01:25]}  Rxe8 {[%clk 0:01:16]} 28. Ne5 {[%clk 0:01:26]}  Qb7 {[%clk 0:01:14]} 29. Nd3 {[%clk 0:01:20]}  Ned5 {[%clk 0:01:12]} 30. Nxb4 {[%clk 0:01:11]}  Nxb4 {[%clk 0:01:09]} 31. Ba3 {[%clk 0:01:11]}  Bf8 {[%clk 0:01:08]} 32. Bxb4 {[%clk 0:01:09]}  Bxb4 {[%clk 0:01:07]} 33. Ra2 {[%clk 0:01:09]}  Rd8 {[%clk 0:01:06]} 34. Rac2 {[%clk 0:01:08]}  c5 {[%clk 0:01:04]} 35. dxc5 {[%clk 0:01:07]}  bxc5 {[%clk 0:01:04]} 36. Rd1 {[%clk 0:01:07]}  Rd5 {[%clk 0:01:02]} 37. Rxd5 {[%clk 0:01:07]}  exd5 {[%clk 0:00:58]} 38. Rc1 {[%clk 0:00:59]}  d4 {[%clk 0:00:53]} 39. exd4 {[%clk 0:00:56]}  cxd4 {[%clk 0:00:44]} 40. Qe8+ {[%clk 0:00:55]}  Kg7 {[%clk 0:00:45]} 41. Qe5+ {[%clk 0:00:51]}  Kh6 {[%clk 0:00:45]} 42. Qxd4 {[%clk 0:00:51]}  f5 {[%clk 0:00:35]} 43. Qf4+ {[%clk 0:00:51]} 1-0


[Site "https://www.chess.com"]

[Event "Titled Tuesday Blitz January 10 Late 2023"]
[White "Tyagi, Kushan"]
[Black "Milosevic, Milos"]
[WhiteFideId "2040069"]
[BlackFideId "964875"]
[WhiteElo "2060"]
[BlackElo "2420"]
[Result "0-1"]
[Round "01"]
[TimeControl "180+2"]
[Date "2023.01.10"]
[WhiteClock "0:00:57"]
[BlackClock "0:01:45"]

1. d4 {[%clk 0:00:00]}  Nc6 {[%clk 0:00:00]} 2. d5 {[%clk 0:02:55]}  Ne5 {[%clk 0:03:00]} 3. e4 {[%clk 0:02:53]}  e6 {[%clk 0:03:01]} 4. dxe6 {[%clk 0:02:53]}  fxe6 {[%clk 0:02:58]} 5. Nc3 {[%clk 0:02:40]}  Nf6 {[%clk 0:02:57]} 6. h3 {[%clk 0:02:40]}  Bb4 {[%clk 0:02:57]} 7. Bd3 {[%clk 0:02:30]}  O-O {[%clk 0:02:56]} 8. f4 {[%clk 0:02:22]}  Nxd3+ {[%clk 0:02:55]} 9. cxd3 {[%clk 0:02:22]}  d5 {[%clk 0:02:50]} 10. e5 {[%clk 0:02:20]}  d4 {[%clk 0:02:46]} 11. exf6 {[%clk 0:02:20]}  dxc3 {[%clk 0:02:40]} 12. Kf1 {[%clk 0:02:16]}  Qxf6 {[%clk 0:02:40]} 13. Qb3 {[%clk 0:01:48]}  cxb2 {[%clk 0:02:36]} 14. Bxb2 {[%clk 0:01:43]}  Qxf4+ {[%clk 0:02:33]} 15. Nf3 {[%clk 0:01:38]}  Bc5 {[%clk 0:02:33]} 16. Re1 {[%clk 0:01:38]}  Bb6 {[%clk 0:02:24]} 17. Re4 {[%clk 0:01:29]}  Qf5 {[%clk 0:02:12]} 18. Rg4 {[%clk 0:01:16]}  Rf7 {[%clk 0:01:59]} 19. Qc3 {[%clk 0:01:13]}  e5 {[%clk 0:01:59]} 20. Ke2 {[%clk 0:01:10]}  Bd7 {[%clk 0:01:55]} 21. Re4 {[%clk 0:00:57]}  Bc6 {[%clk 0:01:45]} 0-1


[Site "https://www.chess.com"]

[Event "Titled Tuesday Blitz January 10 Late 2023"]
[White "Sebag, Marie"]
[Black "Zampronha, Wladimir Camilo"]
[WhiteFideId "617822"]
[BlackFideId "2103087"]
[WhiteElo "2430"]
[BlackElo "2176"]
[Result "0-1"]
[Round "01"]
[TimeControl "180+2"]
[Date "2023.01.10"]
[WhiteClock "0:00:16"]
[BlackClock "0:00:13"]

1. c4 {[%clk 0:00:00]}  Nf6 {[%clk 0:00:00]} 2. Nc3 {[%clk 0:02:58]}  e6 {[%clk 0:02:59]} 3. g3 {[%clk 0:02:57]}  d5 {[%clk 0:02:59]} 4. d4 {[%clk 0:02:56]}  Be7 {[%clk 0:02:59]} 5. Bg2 {[%clk 0:02:55]}  O-O {[%clk 0:02:58]} 6. Nf3 {[%clk 0:02:55]}  dxc4 {[%clk 0:02:58]} 7. O-O {[%clk 0:02:55]}  a6 {[%clk 0:02:58]} 8. a4 {[%clk 0:02:53]}  c5 {[%clk 0:02:57]} 9. dxc5 {[%clk 0:02:52]}  Bxc5 {[%clk 0:02:55]} 10. Ne5 {[%clk 0:02:49]}  Qe7 {[%clk 0:02:53]} 11. Nxc4 {[%clk 0:02:48]}  Rd8 {[%clk 0:02:41]} 12. Qc2 {[%clk 0:02:39]}  Nc6 {[%clk 0:02:40]} 13. e3 {[%clk 0:02:38]}  Nb4 {[%clk 0:02:38]} 14. Qb3 {[%clk 0:02:36]}  Rb8 {[%clk 0:02:36]} 15. e4 {[%clk 0:02:33]}  Nc6 {[%clk 0:02:16]} 16. e5 {[%clk 0:02:23]}  Nd5 {[%clk 0:01:47]} 17. Nxd5 {[%clk 0:02:06]}  exd5 {[%clk 0:01:37]} 18. Ne3 {[%clk 0:02:01]}  Nd4 {[%clk 0:01:38]} 19. Qd1 {[%clk 0:02:00]}  Be6 {[%clk 0:01:31]} 20. Bd2 {[%clk 0:01:51]}  b5 {[%clk 0:01:29]} 21. axb5 {[%clk 0:01:40]}  axb5 {[%clk 0:01:27]} 22. Rc1 {[%clk 0:01:36]}  b4 {[%clk 0:01:28]} 23. Kh1 {[%clk 0:01:36]}  b3 {[%clk 0:01:23]} 24. f4 {[%clk 0:01:28]}  g6 {[%clk 0:01:22]} 25. Bc3 {[%clk 0:01:27]}  Nf5 {[%clk 0:01:22]} 26. Ng4 {[%clk 0:01:25]}  d4 {[%clk 0:01:09]} 27. Nf6+ {[%clk 0:01:19]}  Kh8 {[%clk 0:01:02]} 28. Ba5 {[%clk 0:01:19]}  Rdc8 {[%clk 0:01:01]} 29. Qg4 {[%clk 0:01:18]}  Ne3 {[%clk 0:00:47]} 30. Qh4 {[%clk 0:01:05]}  h5 {[%clk 0:00:35]} 31. g4 {[%clk 0:01:03]}  Bxg4 {[%clk 0:00:35]} 32. h3 {[%clk 0:00:40]}  Bf5 {[%clk 0:00:27]} 33. Qg5 {[%clk 0:00:36]}  Qf8 {[%clk 0:00:22]} 34. Bf3 {[%clk 0:00:34]}  Nxf1 {[%clk 0:00:21]} 35. Rxf1 {[%clk 0:00:29]}  Be7 {[%clk 0:00:20]} 36. Bxh5 {[%clk 0:00:28]}  Bxf6 {[%clk 0:00:20]} 37. exf6 {[%clk 0:00:27]}  Kh7 {[%clk 0:00:18]} 38. Bg4 {[%clk 0:00:26]}  Qh6 {[%clk 0:00:17]} 39. Bxf5 {[%clk 0:00:24]}  Qxg5 {[%clk 0:00:17]} 40. fxg5 {[%clk 0:00:21]}  gxf5 {[%clk 0:00:16]} 41. Kg2 {[%clk 0:00:21]}  Kg6 {[%clk 0:00:16]} 42. h4 {[%clk 0:00:20]}  Rc2+ {[%clk 0:00:17]} 43. Kg3 {[%clk 0:00:20]}  Rxb2 {[%clk 0:00:17]} 44. Rh1 {[%clk 0:00:19]}  Kh5 {[%clk 0:00:16]} 45. Rf1 {[%clk 0:00:19]}  Ra2 {[%clk 0:00:15]} 46. Bc7 {[%clk 0:00:16]}  b2 {[%clk 0:00:15]} 47. Bxb8 {[%clk 0:00:16]}  Ra1 {[%clk 0:00:13]} 0-1


[Site "https://www.chess.com"]

[Event "Titled Tuesday Blitz January 10 Late 2023"]
[White "Stavri, Gligor"]
[Black "Chor, Kevin"]
[WhiteFideId "4706013"]
[BlackFideId "2090740"]
[WhiteElo "1867"]
[BlackElo "1944"]
[Result "0-1"]
[Round "01"]
[TimeControl "180+2"]
[Date "2023.01.10"]
[WhiteClock "0:00:02"]
[BlackClock "0:00:22"]

1. d4 {[%clk 0:00:00]}  Nf6 {[%clk 0:00:00]} 2. c4 {[%clk 0:02:58]}  g6 {[%clk 0:02:59]} 3. Nc3 {[%clk 0:02:57]}  Bg7 {[%clk 0:02:59]} 4. e4 {[%clk 0:02:57]}  d6 {[%clk 0:02:58]} 5. Nf3 {[%clk 0:02:57]}  O-O {[%clk 0:02:58]} 6. Be2 {[%clk 0:02:57]}  e5 {[%clk 0:02:59]} 7. Be3 {[%clk 0:02:58]}  Ng4 {[%clk 0:02:59]} 8. Bg5 {[%clk 0:02:55]}  f6 {[%clk 0:02:55]} 9. Bh4 {[%clk 0:02:55]}  g5 {[%clk 0:02:55]} 10. Bg3 {[%clk 0:02:54]}  Nc6 {[%clk 0:02:55]} 11. h4 {[%clk 0:02:54]}  gxh4 {[%clk 0:02:55]} 12. Rxh4 {[%clk 0:02:16]}  f5 {[%clk 0:02:35]} 13. dxe5 {[%clk 0:02:10]}  f4 {[%clk 0:02:28]} 14. Bh2 {[%clk 0:01:44]}  dxe5 {[%clk 0:02:16]} 15. Qxd8 {[%clk 0:00:59]}  Nxd8 {[%clk 0:01:54]} 16. g3 {[%clk 0:00:59]}  c6 {[%clk 0:01:43]} 17. Nd2 {[%clk 0:00:50]}  Nxh2 {[%clk 0:01:26]} 18. Rxh2 {[%clk 0:00:18]}  Ne6 {[%clk 0:01:09]} 19. O-O-O {[%clk 0:00:19]}  Nd4 {[%clk 0:01:08]} 20. Nf3 {[%clk 0:00:18]}  Nxe2+ {[%clk 0:01:04]} 21. Nxe2 {[%clk 0:00:18]}  fxg3 {[%clk 0:00:58]} 22. Nxg3 {[%clk 0:00:19]}  Rxf3 {[%clk 0:00:51]} 23. Rd8+ {[%clk 0:00:14]}  Rf8 {[%clk 0:00:50]} 24. Rd6 {[%clk 0:00:15]}  Bg4 {[%clk 0:00:51]} 25. Nh5 {[%clk 0:00:12]}  Bxh5 {[%clk 0:00:47]} 26. Rxh5 {[%clk 0:00:09]}  Rad8 {[%clk 0:00:39]} 27. Re6 {[%clk 0:00:08]}  Rxf2 {[%clk 0:00:39]} 28. Rg5 {[%clk 0:00:07]}  Kf7 {[%clk 0:00:38]} 29. Rf5+ {[%clk 0:00:07]}  Rxf5 {[%clk 0:00:37]} 30. exf5 {[%clk 0:00:05]}  h5 {[%clk 0:00:33]} 31. Kc2 {[%clk 0:00:06]}  Rd4 {[%clk 0:00:30]} 32. Kc3 {[%clk 0:00:05]}  e4 {[%clk 0:00:28]} 33. Kb4 {[%clk 0:00:04]}  h4 {[%clk 0:00:28]} 34. Rg6 {[%clk 0:00:02]}  h3 {[%clk 0:00:27]} 35. Rg4 {[%clk 0:00:02]}  h2 {[%clk 0:00:26]} 36. Rh4 {[%clk 0:00:03]}  Be5 {[%clk 0:00:25]} 37. Kc5 {[%clk 0:00:03]}  Rd1 {[%clk 0:00:25]} 38. b4 {[%clk 0:00:02]}  h1=Q {[%clk 0:00:24]} 39. Rxh1 {[%clk 0:00:02]}  Rxh1 {[%clk 0:00:22]} 40. b5 {[%clk 0:00:01]}  cxb5 {[%clk 0:00:23]} 41. a4 {[%clk 0:00:02]}  bxa4 {[%clk 0:00:20]} 42. Kd5 {[%clk 0:00:02]}  e3 {[%clk 0:00:20]} 43. Kc5 {[%clk 0:00:02]}  e2 {[%clk 0:00:20]} 44. Kd5 {[%clk 0:00:02]}  e1=Q {[%clk 0:00:21]} 45. c5 {[%clk 0:00:02]}  a3 {[%clk 0:00:22]} 0-1


[Site "https://www.chess.com"]

[Event "Titled Tuesday Blitz January 10 Late 2023"]
[White "Jodorcovsky Werjivker, Paulo"]
[Black "Sourath Biswas"]
[WhiteFideId "3700305"]
[BlackFideId "35091484"]
[WhiteElo "2182"]
[BlackElo "2281"]
[Result "1/2-1/2"]
[Round "01"]
[TimeControl "180+2"]
[Date "2023.01.10"]
[WhiteClock "0:00:19"]
[BlackClock "0:00:08"]

1. e4 {[%clk 0:00:00]}  c6 {[%clk 0:00:00]} 2. d4 {[%clk 0:02:58]}  d5 {[%clk 0:02:59]} 3. exd5 {[%clk 0:02:57]}  cxd5 {[%clk 0:03:00]} 4. Bd3 {[%clk 0:02:58]}  Nc6 {[%clk 0:03:01]} 5. c3 {[%clk 0:02:58]}  Nf6 {[%clk 0:03:00]} 6. Bf4 {[%clk 0:02:59]}  Bg4 {[%clk 0:02:59]} 7. Qb3 {[%clk 0:02:59]}  Qd7 {[%clk 0:02:58]} 8. Nd2 {[%clk 0:02:57]}  e6 {[%clk 0:02:58]} 9. Ngf3 {[%clk 0:02:56]}  Bd6 {[%clk 0:02:58]} 10. Bxd6 {[%clk 0:02:56]}  Qxd6 {[%clk 0:02:59]} 11. O-O {[%clk 0:02:56]}  O-O {[%clk 0:02:59]} 12. Rae1 {[%clk 0:02:57]}  Ne7 {[%clk 0:02:59]} 13. Ne5 {[%clk 0:02:55]}  Bf5 {[%clk 0:02:59]} 14. Re3 {[%clk 0:02:54]}  Bxd3 {[%clk 0:02:56]} 15. Rxd3 {[%clk 0:02:49]}  b5 {[%clk 0:02:50]} 16. a3 {[%clk 0:02:49]}  a5 {[%clk 0:02:32]} 17. Rh3 {[%clk 0:02:38]}  Rfb8 {[%clk 0:02:20]} 18. Qc2 {[%clk 0:02:25]}  h6 {[%clk 0:02:15]} 19. Nb3 {[%clk 0:02:23]}  Rc8 {[%clk 0:02:12]} 20. Qd3 {[%clk 0:02:08]}  b4 {[%clk 0:02:01]} 21. axb4 {[%clk 0:02:00]}  axb4 {[%clk 0:02:00]} 22. Qg3 {[%clk 0:01:58]}  Nf5 {[%clk 0:02:01]} 23. Qf4 {[%clk 0:01:47]}  bxc3 {[%clk 0:01:55]} 24. bxc3 {[%clk 0:01:29]}  Ra3 {[%clk 0:01:52]} 25. Nc5 {[%clk 0:01:27]}  g5 {[%clk 0:01:37]} 26. Qc1 {[%clk 0:01:22]}  Ra7 {[%clk 0:01:36]} 27. g4 {[%clk 0:01:15]}  Nh4 {[%clk 0:01:24]} 28. f4 {[%clk 0:01:12]}  Rxc5 {[%clk 0:01:15]} 29. fxg5 {[%clk 0:00:56]}  Ne4 {[%clk 0:00:46]} 30. dxc5 {[%clk 0:00:55]}  Qxc5+ {[%clk 0:00:27]} 31. Qe3 {[%clk 0:00:30]}  Qxe3+ {[%clk 0:00:13]} 32. Rxe3 {[%clk 0:00:24]}  hxg5 {[%clk 0:00:11]} 33. c4 {[%clk 0:00:25]}  Nd2 {[%clk 0:00:11]} 34. Rc1 {[%clk 0:00:23]}  dxc4 {[%clk 0:00:09]} 35. Nxc4 {[%clk 0:00:19]}  Ndf3+ {[%clk 0:00:01]} 36. Kf2 {[%clk 0:00:18]}  Ra2+ {[%clk 0:00:01]} 37. Re2 {[%clk 0:00:17]}  Rxe2+ {[%clk 0:00:01]} 38. Kxe2 {[%clk 0:00:17]}  Nxh2 {[%clk 0:00:01]} 39. Ne5 {[%clk 0:00:18]}  f6 {[%clk 0:00:02]} 40. Rc8+ {[%clk 0:00:18]}  Kg7 {[%clk 0:00:01]} 41. Rc7+ {[%clk 0:00:18]}  Kf8 {[%clk 0:00:01]} 42. Nd7+ {[%clk 0:00:19]}  Kg8 {[%clk 0:00:02]} 43. Nxf6+ {[%clk 0:00:18]}  Kf8 {[%clk 0:00:03]} 44. Nh7+ {[%clk 0:00:19]}  Ke8 {[%clk 0:00:04]} 45. Nxg5 {[%clk 0:00:19]}  Nxg4 {[%clk 0:00:05]} 46. Nxe6 {[%clk 0:00:20]}  Nf5 {[%clk 0:00:05]} 47. Ng7+ {[%clk 0:00:21]}  Nxg7 {[%clk 0:00:05]} 48. Rxg7 {[%clk 0:00:20]}  Nf6 {[%clk 0:00:05]} 49. Kf3 {[%clk 0:00:21]}  Kf8 {[%clk 0:00:06]} 50. Ra7 {[%clk 0:00:21]}  Ke8 {[%clk 0:00:06]} 51. Rg7 {[%clk 0:00:21]}  Nd7 {[%clk 0:00:07]} 52. Ke4 {[%clk 0:00:22]}  Nf8 {[%clk 0:00:07]} 53. Kf5 {[%clk 0:00:21]}  Kd8 {[%clk 0:00:06]} 54. Rf7 {[%clk 0:00:20]}  Nd7 {[%clk 0:00:06]} 55. Ke6 {[%clk 0:00:20]}  Nb8 {[%clk 0:00:06]} 56. Kd6 {[%clk 0:00:20]}  Kc8 {[%clk 0:00:06]} 57. Rc7+ {[%clk 0:00:20]}  Kd8 {[%clk 0:00:06]} 58. Rb7 {[%clk 0:00:20]}  Kc8 {[%clk 0:00:07]} 59. Rc7+ {[%clk 0:00:20]}  Kd8 {[%clk 0:00:08]} 60. Rh7 {[%clk 0:00:19]}  Kc8 {[%clk 0:00:08]} 61. Kc5 {[%clk 0:00:19]}  Nd7+ {[%clk 0:00:09]} 62. Kc6 {[%clk 0:00:19]}  Ne5+ {[%clk 0:00:08]} 63. Kd5 {[%clk 0:00:19]}  Nd7 {[%clk 0:00:08]} 64. Kd6 {[%clk 0:00:19]}  Nb8 {[%clk 0:00:08]} 65. Rc7+ {[%clk 0:00:19]} 1/2-1/2


[Site "https://www.chess.com"]

[Event "Titled Tuesday Blitz January 10 Late 2023"]
[White "Smith, Garrett L"]
[Black "Kourkoulos-Arditis, Stamatis"]
[WhiteFideId "2024829"]
[BlackFideId "4221990"]
[WhiteElo "2047"]
[BlackElo "2539"]
[Result "0-1"]
[Round "01"]
[TimeControl "180+2"]
[Date "2023.01.10"]
[WhiteClock "0:01:03"]
[BlackClock "0:01:21"]

1. e4 {[%clk 0:00:00]}  Nf6 {[%clk 0:00:00]} 2. e5 {[%clk 0:03:00]}  Nd5 {[%clk 0:02:57]} 3. d4 {[%clk 0:03:00]}  d6 {[%clk 0:02:57]} 4. Nf3 {[%clk 0:03:01]}  dxe5 {[%clk 0:02:57]} 5. Nxe5 {[%clk 0:03:01]}  c6 {[%clk 0:02:56]} 6. Be2 {[%clk 0:03:00]}  Bf5 {[%clk 0:02:56]} 7. O-O {[%clk 0:03:00]}  Nd7 {[%clk 0:02:56]} 8. f4 {[%clk 0:02:58]}  e6 {[%clk 0:02:57]} 9. g4 {[%clk 0:02:49]}  Be4 {[%clk 0:02:53]} 10. Bf3 {[%clk 0:02:44]}  Bxf3 {[%clk 0:02:41]} 11. Qxf3 {[%clk 0:02:37]}  Be7 {[%clk 0:02:39]} 12. c3 {[%clk 0:02:33]}  O-O {[%clk 0:02:23]} 13. Be3 {[%clk 0:02:29]}  Nxe5 {[%clk 0:02:22]} 14. fxe5 {[%clk 0:02:27]}  c5 {[%clk 0:02:11]} 15. Nd2 {[%clk 0:02:25]}  Nxe3 {[%clk 0:02:06]} 16. Qxe3 {[%clk 0:02:12]}  cxd4 {[%clk 0:01:36]} 17. cxd4 {[%clk 0:02:13]}  Bg5 {[%clk 0:01:35]} 18. Qf2 {[%clk 0:02:13]}  Bxd2 {[%clk 0:01:35]} 19. Qxd2 {[%clk 0:02:12]}  Qd5 {[%clk 0:01:34]} 20. Rf4 {[%clk 0:02:12]}  Rac8 {[%clk 0:01:34]} 21. b3 {[%clk 0:02:02]}  Rc7 {[%clk 0:01:33]} 22. Raf1 {[%clk 0:01:56]}  Rfc8 {[%clk 0:01:31]} 23. Qf2 {[%clk 0:01:55]}  Rc2 {[%clk 0:01:29]} 24. Qg3 {[%clk 0:01:34]}  R8c7 {[%clk 0:01:29]} 25. R1f2 {[%clk 0:01:34]}  Rxf2 {[%clk 0:01:21]} 26. Kxf2 {[%clk 0:01:22]}  Rc2+ {[%clk 0:01:21]} 27. Kg1 {[%clk 0:01:18]}  Rxa2 {[%clk 0:01:21]} 28. Rf3 {[%clk 0:01:03]}  Qxd4+ {[%clk 0:01:21]} 0-1


[Site "https://www.chess.com"]

[Event "Titled Tuesday Blitz January 10 Late 2023"]
[White "Koscielski, Janusz"]
[Black "Sargsyan, Anna M."]
[WhiteFideId "4614437"]
[BlackFideId "13308130"]
[WhiteElo "2260"]
[BlackElo "2375"]
[Result "0-1"]
[Round "01"]
[TimeControl "180+2"]
[Date "2023.01.10"]
[WhiteClock "0:00:46"]
[BlackClock "0:02:21"]

1. e4 {[%clk 0:00:00]}  c6 {[%clk 0:00:00]} 2. d4 {[%clk 0:02:04]}  d5 {[%clk 0:02:55]} 3. Nc3 {[%clk 0:02:03]}  dxe4 {[%clk 0:02:56]} 4. Nxe4 {[%clk 0:02:04]}  Nd7 {[%clk 0:02:56]} 5. Bc4 {[%clk 0:02:04]}  Ngf6 {[%clk 0:02:56]} 6. Ng5 {[%clk 0:02:04]}  e6 {[%clk 0:02:56]} 7. Qe2 {[%clk 0:02:04]}  Nb6 {[%clk 0:02:57]} 8. Bb3 {[%clk 0:02:05]}  h6 {[%clk 0:02:56]} 9. N5f3 {[%clk 0:02:04]}  Bd6 {[%clk 0:02:56]} 10. Ne5 {[%clk 0:02:04]}  O-O {[%clk 0:02:53]} 11. Ngf3 {[%clk 0:02:04]}  c5 {[%clk 0:02:53]} 12. dxc5 {[%clk 0:02:04]}  Bxc5 {[%clk 0:02:53]} 13. O-O {[%clk 0:02:04]}  Qc7 {[%clk 0:02:53]} 14. Bf4 {[%clk 0:02:04]}  Nbd5 {[%clk 0:02:53]} 15. Bg3 {[%clk 0:02:00]}  Bd6 {[%clk 0:02:50]} 16. h3 {[%clk 0:01:59]}  b6 {[%clk 0:02:43]} 17. Rfd1 {[%clk 0:01:54]}  Nh5 {[%clk 0:02:43]} 18. Bxd5 {[%clk 0:01:50]}  Nxg3 {[%clk 0:02:27]} 19. fxg3 {[%clk 0:01:41]}  exd5 {[%clk 0:02:26]} 20. Rxd5 {[%clk 0:01:41]}  Bb7 {[%clk 0:02:25]} 21. Rxd6 {[%clk 0:01:40]}  Qxd6 {[%clk 0:02:25]} 22. Rd1 {[%clk 0:00:59]}  Qc5+ {[%clk 0:02:26]} 23. Kh2 {[%clk 0:00:59]}  Rfe8 {[%clk 0:02:24]} 24. Rd7 {[%clk 0:00:59]}  Bxf3 {[%clk 0:02:22]} 25. Qxf3 {[%clk 0:00:46]}  Qxe5 {[%clk 0:02:21]} 0-1


[Site "https://www.chess.com"]